fUSD/lending_fUSD_20250209
["ID","MTS","AMOUNT","RATE_DAILY","PERIOD"]
[352363702,1739062238675,-686.6,9.999e-05,2]
[352363723,1739062238863,-1575.79,9.999e-05,2]
[352363725,1739062238873,-500.0,9.999e-05,2]
[352363727,1739062238884,-774.39,9.999e-05,2]
[352363729,1739062238894,-1065.68,9.999e-05,2]
[352363731,1739062238903,-500.0,9.999e-05,2]
[352363733,1739062238912,-577.42,9.999e-05,2]
[352363735,1739062238922,-500.0,9.999e-05,2]
[352363737,1739062238931,-519.47,9.999e-05,2]
[352363739,1739062238941,-500.0,9.999e-05,2]
[352363741,1739062238950,-500.0,9.999e-05,2]
[352363743,1739062238959,-500.0,9.999e-05,2]
[352363745,1739062238968,-839.26,9.999e-05,2]
[352363747,1739062238977,-500.0,9.999e-05,2]
[352363749,1739062238986,-500.0,9.999e-05,2]
[352363751,1739062238996,-500.0,9.999e-05,2]
[352363752,1739062239005,-500.0,9.999e-05,2]
[352363755,1739062239015,-748.39,9.999e-05,2]
[352363756,1739062239026,-500.0,9.999e-05,2]
[352363758,1739062239037,-500.0,9.999e-05,2]
[352363760,1739062239048,-638.53,9.999e-05,2]
[352363762,1739062239058,-500.0,9.999e-05,2]
[352363764,1739062239068,-1124.11,9.999e-05,2]
[352363766,1739062239077,-500.0,9.999e-05,2]
[352363768,1739062239086,-840.11,9.999e-05,2]
[352363770,1739062239096,-500.0,9.999e-05,2]
[352363772,1739062239107,-1520.78,9.999e-05,2]
[352363774,1739062239117,-640.86,9.999e-05,2]
[352363776,1739062239127,-500.0,9.999e-05,2]
[352363778,1739062239136,-500.0,9.999e-05,2]
[352363780,1739062239146,-500.0,9.999e-05,2]
[352363782,1739062239155,-1674.29,9.999e-05,2]
[352363784,1739062239166,-460.1812114,9.999e-05,2]
[352363786,1739062239176,-1326.43,9.999e-05,2]
[352363788,1739062239185,-500.0,9.999e-05,2]
[352363790,1739062239195,-500.0,9.999e-05,2]
[352363792,1739062239205,-500.0,9.999e-05,2]
[352363794,1739062239215,-1550.19,9.999e-05,2]
[352363796,1739062239224,-152.010228,9.999e-05,2]
[352363798,1739062239233,-1202.61,9.999e-05,2]
[352363800,1739062239242,-500.0,9.999e-05,2]
[352363802,1739062239251,-500.0,9.999e-05,2]
[352363804,1739062239260,-500.0,9.999e-05,2]
[352363806,1739062239270,-500.0,9.999e-05,2]
[352363808,1739062239279,-500.0,9.999e-05,2]
[352363810,1739062239288,-3099.52,9.999e-05,2]
[352363812,1739062239298,-1869.28,9.999e-05,2]
[352363814,1739062239309,-500.0,9.999e-05,2]
[352363816,1739062239320,-167.594376,9.999e-05,2]
[352363818,1739062239329,-500.0,9.999e-05,2]
[352363820,1739062239339,-500.0,9.999e-05,2]
[352363822,1739062239348,-500.0,9.999e-05,2]
[352363824,1739062239358,-500.0,9.999e-05,2]
[352363826,1739062239367,-549.99,9.999e-05,2]
[352363828,1739062239377,-500.0,9.999e-05,2]
[352363830,1739062239387,-1855.95,9.999e-05,2]
[352363832,1739062239396,-636.96,9.999e-05,2]
[352363834,1739062239405,-500.0,9.999e-05,2]
[352363836,1739062239415,-500.0,9.999e-05,2]
[352363838,1739062239425,-2623.86,9.999e-05,2]
[352363840,1739062239434,-500.0,9.999e-05,2]
[352363842,1739062239443,-500.0,9.999e-05,2]
[352363844,1739062239451,-500.0,9.999e-05,2]
[352363846,1739062239461,-500.0,9.999e-05,2]
[352363848,1739062239470,-500.0,9.999e-05,2]
[352363850,1739062239479,-203.56719733,9.999e-05,2]
[352363852,1739062239488,-500.0,9.999e-05,2]
[352363854,1739062239498,-250.0,9.999e-05,2]
[352363856,1739062239507,-500.0,9.999e-05,2]
[352363858,1739062239516,-154.94463017,9.999e-05,2]
[352363860,1739062239525,-302.87038073,9.999e-05,2]
[352363862,1739062239534,-4763.97913799,0.0001,2]
[352363864,1739062239544,-1925402.45796618,0.0001,2]
[352363866,1739062239554,-985.27,0.0001,2]
[352363868,1739062239563,-2400.0,0.0001,3]
[352363870,1739062239572,-550.07289336,0.0001,2]
[352363872,1739062239582,-1168.16033,0.000101,2]
[352363874,1739062239592,-500.0,0.00010135,2]
[352363876,1739062239602,-500.0,0.00010135,2]
[352363878,1739062239611,-500.0,0.00010135,2]
[352363880,1739062239620,-500.0,0.00010135,2]
[352363882,1739062239630,-719.25,0.00010135,2]
[352363884,1739062239639,-866.2,0.00010135,2]
[352363886,1739062239649,-1187.02,0.00010135,2]
[352363888,1739062239658,-1371.28,0.00010135,2]
[352363890,1739062239667,-500.0,0.00010135,2]
[352363892,1739062239677,-1082.36,0.00010135,2]
[352363894,1739062239686,-500.0,0.00010135,2]
[352363896,1739062239695,-860.2,0.00010135,2]
[352363898,1739062239704,-1015.58,0.00010135,2]
[352363900,1739062239714,-1485.32,0.00010135,2]
[352363902,1739062239726,-1470.99,0.00010135,2]
[352363904,1739062239735,-500.0,0.00010135,2]
[352363906,1739062239745,-1118.38,0.00010135,2]
[352363908,1739062239755,-500.0,0.00010135,2]
[352363910,1739062239766,-540.83,0.00010135,2]
[352363912,1739062239775,-500.0,0.00010135,2]
[352363914,1739062239784,-500.0,0.00010135,2]
[352363916,1739062239796,-500.0,0.00010135,2]
[352363918,1739062239805,-500.0,0.00010135,2]
[352363920,1739062239815,-500.0,0.00010135,2]
[352363922,1739062239823,-664.28,0.00010135,2]
[352363924,1739062239832,-670.81,0.00010135,2]
[352363926,1739062239841,-500.0,0.00010135,2]
[352363928,1739062239851,-811.12,0.00010135,2]
[352363930,1739062239859,-865.92,0.00010135,2]
[352363932,1739062239868,-500.0,0.00010135,2]
[352363934,1739062239878,-500.0,0.00010135,2]
[352363936,1739062239887,-547.91,0.00010135,2]
[352363938,1739062239896,-622.82,0.00010135,2]
[352363940,1739062239906,-500.0,0.00010135,2]
[352363942,1739062239916,-500.0,0.00010135,2]
[352363943,1739062239925,-500.0,0.00010135,2]
[352363944,1739062239934,-415.81699,0.00010136,2]
[352363945,1739062239943,-426.599344,0.00010136,2]
[352363946,1739062239952,-500.0,0.00010136,2]
[352363947,1739062239961,-500.0,0.00010136,2]
[352363948,1739062239970,-500.0,0.00010136,2]
[352363949,1739062239980,-158.31,0.00010136,2]
[352363950,1739062239989,-456.69,0.00010136,2]
[352363951,1739062239998,-500.0,0.00010136,2]
[352363952,1739062240007,-240.65736419,0.00010136,2]
[352363953,1739062240015,-500.0,0.00010136,2]
[352363955,1739062240024,-610.46,0.00010136,2]
[352363957,1739062240033,-310.21132927,0.00010136,2]
[352363958,1739062240042,-500.0,0.00010136,2]
[352363959,1739062240051,-500.0,0.00010136,2]
[352363960,1739062240060,-500.0,0.00010136,2]
[352363961,1739062240069,-500.0,0.00010136,2]
[352363962,1739062240078,-533.96,0.00010136,2]
[352363963,1739062240088,-500.0,0.00010136,2]
[352363964,1739062240097,-500.0,0.00010136,2]
[352363966,1739062240107,-500.0,0.00010136,2]
[352363968,1739062240117,-500.0,0.00010136,2]
[352363970,1739062240127,-500.0,0.00010136,2]
[352363972,1739062240136,-500.0,0.00010136,2]
[352363974,1739062240145,-500.0,0.00010136,2]
[352363976,1739062240154,-500.0,0.00010136,2]
[352363978,1739062240164,-500.0,0.00010136,2]
[352363979,1739062240173,-500.0,0.00010136,2]
[352363981,1739062240183,-500.0,0.00010136,2]
[352363984,1739062240193,-500.0,0.00010136,2]
[352363985,1739062240203,-500.0,0.00010136,2]
[352363987,1739062240212,-500.0,0.00010136,2]
[352363989,1739062240223,-500.0,0.00010136,2]
[352363991,1739062240232,-500.0,0.00010136,2]
[352363993,1739062240242,-248.79,0.00010136,2]
[352363995,1739062240251,-500.0,0.00010136,2]
[352363997,1739062240260,-500.0,0.00010136,2]
[352363999,1739062240270,-500.0,0.00010136,2]
[352364001,1739062240279,-696.04,0.00010136,2]
[352364003,1739062240289,-500.0,0.00010136,2]
[352364005,1739062240299,-500.0,0.00010136,2]
[352364007,1739062240309,-500.0,0.00010136,2]
[352364009,1739062240318,-521.78,0.00010136,2]
[352364012,1739062240328,-552.80786063,0.00010136,2]
[352364014,1739062240338,-500.0,0.00010136,2]
[352364015,1739062240347,-500.0,0.00010136,2]
[352364017,1739062240356,-500.0,0.00010136,2]
[352364019,1739062240365,-500.0,0.00010136,2]
[352364021,1739062240374,-500.0,0.00010136,2]
[352364023,1739062240383,-223.66991468,0.00010136,2]
[352364025,1739062240392,-500.0,0.00010136,2]
[352364028,1739062240401,-500.0,0.00010136,2]
[352364029,1739062240410,-500.0,0.00010136,2]
[352364031,1739062240419,-500.0,0.00010136,2]
[352364034,1739062240428,-500.0,0.00010136,2]
[352364035,1739062240437,-564.9,0.00010136,2]
[352364038,1739062240447,-500.0,0.00010136,2]
[352364040,1739062240455,-500.0,0.00010136,2]
[352364041,1739062240465,-500.0,0.00010136,2]
[352364043,1739062240473,-500.0,0.00010136,2]
[352364045,1739062240483,-500.0,0.00010136,2]
[352364047,1739062240491,-500.0,0.00010136,2]
[352364049,1739062240501,-500.0,0.00010136,2]
[352364051,1739062240510,-500.0,0.00010136,2]
[352364053,1739062240519,-500.0,0.00010136,2]
[352364056,1739062240528,-582.32,0.00010136,2]
[352364058,1739062240538,-5000.0,0.00010136,2]
[352364060,1739062240548,-587.8,0.00010136,2]
[352364062,1739062240557,-500.0,0.00010136,2]
[352364064,1739062240566,-236.7,0.00010136,2]
[352364066,1739062240575,-526.29,0.00010136,2]
[352364068,1739062240584,-500.0,0.00010136,2]
[352364070,1739062240593,-500.0,0.00010136,2]
[352364072,1739062240602,-500.0,0.00010136,2]
[352364074,1739062240611,-500.0,0.00010136,2]
[352364076,1739062240620,-500.0,0.00010136,2]
[352364078,1739062240630,-500.0,0.00010136,2]
[352364080,1739062240639,-500.0,0.00010136,2]
[352364082,1739062240648,-500.0,0.00010136,2]
[352364084,1739062240657,-1138.47,0.00010136,2]
[352364086,1739062240667,-500.0,0.00010136,2]
[352364088,1739062240676,-557.66,0.00010136,2]
[352364089,1739062240685,-500.0,0.00010136,2]
[352364091,1739062240695,-500.0,0.00010136,2]
[352364094,1739062240704,-500.0,0.00010136,2]
[352364095,1739062240715,-500.0,0.00010136,2]
[352364098,1739062240726,-500.0,0.00010136,2]
[352364099,1739062240736,-500.0,0.00010136,2]
[352364102,1739062240745,-500.0,0.00010136,2]
[352364104,1739062240755,-286.85204558,0.00010136,2]
[352364105,1739062240764,-500.0,0.00010136,2]
[352364108,1739062240774,-500.0,0.00010136,2]
[352364110,1739062240783,-551.8,0.00010136,2]
[352364112,1739062240794,-500.0,0.00010136,2]
[352364113,1739062240803,-500.0,0.00010136,2]
[352364116,1739062240812,-500.0,0.00010136,2]
[352364117,1739062240822,-567.6159612,0.00010136,2]
[352364120,1739062240831,-1339.18,0.00010136,2]
[352364121,1739062240840,-500.0,0.00010136,2]
[352364123,1739062240849,-500.0,0.00010136,2]
[352364125,1739062240858,-500.0,0.00010136,2]
[352364127,1739062240867,-1105.61,0.00010136,2]
[352364129,1739062240877,-1464.15,0.00010136,2]
[352364132,1739062240887,-500.0,0.00010136,2]
[352364133,1739062240896,-1483.04,0.00010136,2]
[352364136,1739062240906,-646.36,0.00010136,2]
[352364138,1739062240916,-758.82,0.00010136,2]
[352364139,1739062240925,-500.0,0.00010136,2]
[352364142,1739062240934,-982.12,0.00010136,2]
[352364143,1739062240943,-165.29,0.00010136,2]
[352364145,1739062240953,-500.0,0.00010136,2]
[352364147,1739062240962,-500.0,0.00010136,2]
[352364150,1739062240972,-500.0,0.00010136,2]
[352364151,1739062240981,-500.0,0.00010136,2]
[352364153,1739062240990,-500.0,0.00010136,2]
[352364155,1739062240999,-505.2,0.00010136,2]
[352364157,1739062241009,-897.37,0.00010136,2]
[352364159,1739062241018,-563.12,0.00010136,2]
[352364162,1739062241028,-2123.12,0.00010136,2]
[352364164,1739062241037,-500.0,0.00010136,2]
[352364165,1739062241046,-726.99,0.00010136,2]
[352364167,1739062241055,-1989.94,0.00010136,2]
[352364169,1739062241064,-500.0,0.00010136,2]
[352364171,1739062241073,-500.0,0.00010136,2]
[352364173,1739062241082,-500.0,0.00010136,2]
[352364175,1739062241091,-500.0,0.00010136,2]
[352364177,1739062241100,-500.0,0.00010136,2]
[352364179,1739062241109,-1413.18,0.00010136,2]
[352364181,1739062241118,-513.69,0.00010136,2]
[352364183,1739062241127,-543.5,0.00010136,2]
[352364185,1739062241136,-776.12,0.00010136,2]
[352364187,1739062241146,-506.53,0.00010136,2]
[352364189,1739062241155,-1072.08,0.00010136,2]
[352364191,1739062241164,-657.66,0.00010136,2]
[352364193,1739062241174,-500.0,0.00010136,2]
[352364200,1739062241226,-500.0,0.00010136,2]
[352364202,1739062241235,-588.67,0.00010136,2]
[352364204,1739062241244,-585.38,0.00010136,2]
[352364206,1739062241253,-776.76,0.00010136,2]
[352364208,1739062241262,-810.91,0.00010136,2]
[352364210,1739062241270,-1026.8,0.00010136,2]
[352364211,1739062241279,-500.0,0.00010136,2]
[352364213,1739062241288,-500.0,0.00010136,2]
[352364215,1739062241298,-773.18,0.00010136,2]
[352364217,1739062241306,-635.82,0.00010136,2]
[352364220,1739062241316,-500.0,0.00010136,2]
[352364221,1739062241325,-1815.37,0.00010136,2]
[352364223,1739062241334,-1260.28,0.00010136,2]
[352364225,1739062241344,-500.0,0.00010136,2]
[352364227,1739062241352,-528.07,0.00010136,2]
[352364229,1739062241362,-1456.94,0.00010136,2]
[352364231,1739062241371,-500.0,0.00010136,2]
[352364233,1739062241380,-1873.18,0.00010136,2]
[352364235,1739062241389,-504.53,0.00010136,2]
[352364237,1739062241398,-500.0,0.00010136,2]
[352364239,1739062241408,-500.0,0.00010136,2]
[352364241,1739062241417,-686.6,0.00010136,2]
[352364243,1739062241426,-1575.79,0.00010136,2]
[352364245,1739062241435,-500.0,0.00010136,2]
[352364247,1739062241444,-774.39,0.00010136,2]
[352364249,1739062241453,-1065.68,0.00010136,2]
[352364251,1739062241463,-462.74,0.00010136,2]
[352364253,1739062241472,-577.42,0.00010136,2]
[352364255,1739062241481,-519.47,0.00010136,2]
[352364257,1739062241490,-500.0,0.00010136,2]
[352364259,1739062241499,-500.0,0.00010136,2]
[352364261,1739062241508,-839.26,0.00010136,2]
[352364263,1739062241518,-243.72,0.00010136,2]
[352364265,1739062241527,-500.0,0.00010136,2]
[352364267,1739062241536,-500.0,0.00010136,2]
[352364269,1739062241546,-748.39,0.00010136,2]
[352364271,1739062241554,-500.0,0.00010136,2]
[352364273,1739062241563,-500.0,0.00010136,2]
[352364275,1739062241572,-500.0,0.00010136,2]
[352364277,1739062241581,-1124.11,0.00010136,2]
[352364279,1739062241591,-500.0,0.00010136,2]
[352364281,1739062241599,-840.11,0.00010136,2]
[352364283,1739062241609,-500.0,0.00010136,2]
[352364285,1739062241618,-1520.78,0.00010136,2]
[352364287,1739062241627,-640.86,0.00010136,2]
[352364288,1739062241636,-500.0,0.00010136,2]
[352364290,1739062241646,-500.0,0.00010136,2]
[352364293,1739062241655,-1674.29,0.00010136,2]
[352364294,1739062241664,-1326.43,0.00010136,2]
[352364296,1739062241673,-500.0,0.00010136,2]
[352364298,1739062241682,-1550.19,0.00010136,2]
[352364300,1739062241691,-1202.61,0.00010136,2]
[352364302,1739062241700,-500.0,0.00010136,2]
[352364304,1739062241709,-578.77,0.00010136,2]
[352364306,1739062241720,-500.0,0.00010136,2]
[352364308,1739062241730,-500.0,0.00010136,2]
[352364310,1739062241739,-3099.52,0.00010136,2]
[352364312,1739062241749,-1869.28,0.00010136,2]
[352364314,1739062241759,-500.0,0.00010136,2]
[352364316,1739062241768,-500.0,0.00010136,2]
[352364318,1739062241777,-500.0,0.00010136,2]
[352364320,1739062241786,-1855.95,0.00010136,2]
[352364322,1739062241797,-636.96,0.00010136,2]
[352364325,1739062241809,-500.0,0.00010136,2]
[352364326,1739062241818,-500.0,0.00010136,2]
[352364328,1739062241827,-2623.86,0.00010136,2]
[352364330,1739062241836,-500.0,0.00010136,2]
[352364332,1739062241845,-500.0,0.00010136,2]
[352364334,1739062241854,-500.0,0.00010136,2]
[352364336,1739062241863,-367.5,0.00010137,2]
[352364338,1739062241873,-169.59,0.00010137,2]
[352364340,1739062241883,-182.0,0.00010233,2]
[352364343,1739062241892,-500.0,0.00010272,2]
[352364345,1739062241901,-500.0,0.00010272,2]
[352364346,1739062241910,-500.0,0.00010272,2]
[352364348,1739062241919,-500.0,0.00010272,2]
[352364350,1739062241928,-719.25,0.00010272,2]
[352364352,1739062241936,-866.2,0.00010272,2]
[352364354,1739062241945,-1187.02,0.00010272,2]
[352364356,1739062241954,-1371.28,0.00010272,2]
[352364358,1739062241963,-500.0,0.00010272,2]
[352364360,1739062241972,-1082.36,0.00010272,2]
[352364362,1739062241981,-500.0,0.00010272,2]
[352364364,1739062241991,-860.2,0.00010272,2]
[352364366,1739062242000,-1015.58,0.00010272,2]
[352364368,1739062242009,-1485.32,0.00010272,2]
[352364370,1739062242017,-1470.99,0.00010272,2]
[352364372,1739062242027,-500.0,0.00010272,2]
[352364374,1739062242036,-1118.38,0.00010272,2]
[352364376,1739062242046,-500.0,0.00010272,2]
[352364378,1739062242055,-540.83,0.00010272,2]
[352364380,1739062242064,-500.0,0.00010272,2]
[352364382,1739062242074,-500.0,0.00010272,2]
[352364384,1739062242083,-500.0,0.00010272,2]
[352364386,1739062242092,-500.0,0.00010272,2]
[352364388,1739062242101,-664.28,0.00010272,2]
[352364390,1739062242109,-670.81,0.00010272,2]
[352364392,1739062242118,-500.0,0.00010272,2]
[352364394,1739062242128,-811.12,0.00010272,2]
[352364396,1739062242137,-865.92,0.00010272,2]
[352364398,1739062242146,-500.0,0.00010272,2]
[352364400,1739062242156,-500.0,0.00010272,2]
[352364402,1739062242165,-547.91,0.00010272,2]
[352364404,1739062242175,-622.82,0.00010272,2]
[352364406,1739062242184,-500.0,0.00010272,2]
[352364408,1739062242193,-415.81699,0.00010273,2]
[352364410,1739062242203,-426.599344,0.00010273,2]
[352364412,1739062242212,-500.0,0.00010273,2]
[352364414,1739062242221,-500.0,0.00010273,2]
[352364416,1739062242230,-610.46,0.00010273,2]
[352364418,1739062242239,-500.0,0.00010273,2]
[352364419,1739062242248,-500.0,0.00010273,2]
[352364421,1739062242257,-500.0,0.00010273,2]
[352364423,1739062242266,-533.96,0.00010273,2]
[352364425,1739062242276,-500.0,0.00010273,2]
[352364427,1739062242286,-500.0,0.00010273,2]
[352364430,1739062242295,-500.0,0.00010273,2]
[352364432,1739062242304,-500.0,0.00010273,2]
[352364433,1739062242313,-500.0,0.00010273,2]
[352364435,1739062242323,-500.0,0.00010273,2]
[352364437,1739062242332,-500.0,0.00010273,2]
[352364439,1739062242341,-500.0,0.00010273,2]
[352364441,1739062242350,-500.0,0.00010273,2]
[352364443,1739062242360,-500.0,0.00010273,2]
[352364445,1739062242369,-500.0,0.00010273,2]
[352364447,1739062242380,-500.0,0.00010273,2]
[352364448,1739062242390,-500.0,0.00010273,2]
[352364449,1739062242400,-500.0,0.00010273,2]
[352364450,1739062242409,-500.0,0.00010273,2]
[352364452,1739062242418,-500.0,0.00010273,2]
[352364454,1739062242427,-500.0,0.00010273,2]
[352364456,1739062242436,-500.0,0.00010273,2]
[352364458,1739062242445,-696.04,0.00010273,2]
[352364460,1739062242454,-500.0,0.00010273,2]
[352364462,1739062242463,-500.0,0.00010273,2]
[352364464,1739062242473,-521.78,0.00010273,2]
[352364466,1739062242482,-500.0,0.00010273,2]
[352364468,1739062242490,-500.0,0.00010273,2]
[352364470,1739062242500,-500.0,0.00010273,2]
[352364472,1739062242509,-500.0,0.00010273,2]
[352364474,1739062242518,-500.0,0.00010273,2]
[352364476,1739062242527,-500.0,0.00010273,2]
[352364478,1739062242536,-500.0,0.00010273,2]
[352364480,1739062242545,-500.0,0.00010273,2]
[352364482,1739062242554,-500.0,0.00010273,2]
[352364484,1739062242564,-500.0,0.00010273,2]
[352364486,1739062242573,-500.0,0.00010273,2]
[352364488,1739062242582,-500.0,0.00010273,2]
[352364490,1739062242591,-500.0,0.00010273,2]
[352364492,1739062242600,-500.0,0.00010273,2]
[352364494,1739062242610,-500.0,0.00010273,2]
[352364495,1739062242619,-582.32,0.00010273,2]
[352364498,1739062242630,-587.8,0.00010273,2]
[352364500,1739062242640,-500.0,0.00010273,2]
[352364502,1739062242649,-526.29,0.00010273,2]
[352364504,1739062242658,-500.0,0.00010273,2]
[352364506,1739062242668,-500.0,0.00010273,2]
[352364508,1739062242677,-500.0,0.00010273,2]
[352364509,1739062242687,-500.0,0.00010273,2]
[352364511,1739062242696,-335.35213253,0.00010273,2]
[352364513,1739062242705,-500.0,0.00010273,2]
[352364515,1739062242715,-500.0,0.00010273,2]
[352364517,1739062242727,-500.0,0.00010273,2]
[352364519,1739062242736,-1138.47,0.00010273,2]
[352364521,1739062242746,-500.0,0.00010273,2]
[352364523,1739062242755,-557.66,0.00010273,2]
[352364525,1739062242766,-500.0,0.00010273,2]
[352364527,1739062242775,-184.85856051,0.00010273,2]
[352364529,1739062242785,-500.0,0.00010273,2]
[352364531,1739062242795,-500.0,0.00010273,2]
[352364534,1739062242805,-500.0,0.00010273,2]
[352364536,1739062242815,-500.0,0.00010273,2]
[352364538,1739062242824,-500.0,0.00010273,2]
[352364540,1739062242833,-500.0,0.00010273,2]
[352364542,1739062242843,-551.8,0.00010273,2]
[352364544,1739062242852,-500.0,0.00010273,2]
[352364546,1739062242861,-500.0,0.00010273,2]
[352364548,1739062242870,-500.0,0.00010273,2]
[352364550,1739062242881,-1339.18,0.00010273,2]
[352364552,1739062242892,-500.0,0.00010273,2]
[352364554,1739062242901,-500.0,0.00010273,2]
[352364556,1739062242910,-1105.61,0.00010273,2]
[352364558,1739062242919,-1464.15,0.00010273,2]
[352364559,1739062242928,-500.0,0.00010273,2]
[352364564,1739062242938,-1483.04,0.00010273,2]
[352364566,1739062242947,-646.36,0.00010273,2]
[352364567,1739062242956,-758.82,0.00010273,2]
[352364570,1739062242966,-251.06676781,0.00010273,2]
[352364572,1739062242975,-982.12,0.00010273,2]
[352364575,1739062242984,-500.0,0.00010273,2]
[352364578,1739062242994,-500.0,0.00010273,2]
[352364580,1739062243003,-500.0,0.00010273,2]
[352364583,1739062243011,-209.08,0.00010273,2]
[352364586,1739062243021,-505.2,0.00010273,2]
[352364589,1739062243030,-897.37,0.00010273,2]
[352364591,1739062243039,-2123.12,0.00010273,2]
[352364593,1739062243050,-563.12,0.00010273,2]
[352364595,1739062243059,-500.0,0.00010273,2]
[352364597,1739062243070,-726.99,0.00010273,2]
[352364599,1739062243079,-1989.94,0.00010273,2]
[352364602,1739062243088,-500.0,0.00010273,2]
[352364604,1739062243097,-500.0,0.00010273,2]
[352364606,1739062243106,-500.0,0.00010273,2]
[352364608,1739062243115,-500.0,0.00010273,2]
[352364610,1739062243125,-1413.18,0.00010273,2]
[352364612,1739062243134,-513.69,0.00010273,2]
[352364614,1739062243143,-543.5,0.00010273,2]
[352364616,1739062243151,-776.12,0.00010273,2]
[352364618,1739062243160,-506.53,0.00010273,2]
[352364620,1739062243170,-1072.08,0.00010273,2]
[352364623,1739062243178,-657.66,0.00010273,2]
[352364625,1739062243187,-500.0,0.00010273,2]
[352364627,1739062243197,-500.0,0.00010273,2]
[352364628,1739062243206,-588.67,0.00010273,2]
[352364630,1739062243215,-585.38,0.00010273,2]
[352364632,1739062243225,-776.76,0.00010273,2]
[352364634,1739062243234,-810.91,0.00010273,2]
[352364636,1739062243243,-1026.8,0.00010273,2]
[352364637,1739062243251,-500.0,0.00010273,2]
[352364638,1739062243261,-500.0,0.00010273,2]
[352364639,1739062243270,-773.18,0.00010273,2]
[352364640,1739062243279,-500.0,0.00010273,2]
[352364641,1739062243288,-1815.37,0.00010273,2]
[352364642,1739062243298,-1260.28,0.00010273,2]
[352364643,1739062243307,-500.0,0.00010273,2]
[352364644,1739062243316,-528.07,0.00010273,2]
[352364645,1739062243325,-1456.94,0.00010273,2]
[352364646,1739062243334,-500.0,0.00010273,2]
[352364647,1739062243344,-1873.18,0.00010273,2]
[352364648,1739062243354,-500.0,0.00010273,2]
[352364649,1739062243363,-504.53,0.00010273,2]
[352364650,1739062243373,-686.6,0.00010273,2]
[352364651,1739062243383,-1575.79,0.00010273,2]
[352364652,1739062243392,-500.0,0.00010273,2]
[352364653,1739062243402,-774.39,0.00010273,2]
[352364654,1739062243411,-1065.68,0.00010273,2]
[352364656,1739062243421,-577.42,0.00010273,2]
[352364657,1739062243430,-519.47,0.00010273,2]
[352364658,1739062243440,-495.36148762,0.00010273,2]
[352364659,1739062243449,-500.0,0.00010273,2]
[352364660,1739062243459,-839.26,0.00010273,2]
[352364661,1739062243469,-500.0,0.00010273,2]
[352364662,1739062243478,-748.39,0.00010273,2]
[352364663,1739062243487,-500.0,0.00010273,2]
[352364664,1739062243497,-500.0,0.00010273,2]
[352364665,1739062243507,-500.0,0.00010273,2]
[352364666,1739062243517,-1124.11,0.00010273,2]
[352364667,1739062243527,-500.0,0.00010273,2]
[352364668,1739062243536,-840.11,0.00010273,2]
[352364669,1739062243546,-500.0,0.00010273,2]
[352364670,1739062243555,-1520.78,0.00010273,2]
[352364671,1739062243564,-640.86,0.00010273,2]
[352364672,1739062243574,-500.0,0.00010273,2]